fUSD/lending_fUSD_20240426
["ID","MTS","AMOUNT","RATE_DAILY","PERIOD"]
[323624517,1714143063871,-500.0,0.00012415,2]
[323624518,1714143063880,-500.0,0.00012415,2]
[323624519,1714143063890,-500.0,0.00012415,2]
[323624520,1714143063903,-556.07,0.00012415,2]
[323624521,1714143063915,-547.59,0.00012415,2]
[323624522,1714143063925,-500.0,0.00012415,2]
[323624523,1714143063935,-500.0,0.00012415,2]
[323624524,1714143063946,-500.0,0.00012415,2]
[323624525,1714143063958,-500.0,0.00012415,2]
[323624526,1714143063969,-500.0,0.00012415,2]
[323624527,1714143063981,-500.0,0.00012415,2]
[323624528,1714143063991,-500.0,0.00012415,2]
[323624529,1714143064003,-502.27563299,0.00012415,2]
[323624530,1714143064013,-500.0,0.00012415,2]
[323624531,1714143064023,-777.88,0.00012415,2]
[323624532,1714143064032,-500.0,0.00012415,2]
[323624533,1714143064042,-503.39156694,0.00012415,2]
[323624534,1714143064052,-500.0,0.00012415,2]
[323624535,1714143064064,-500.0,0.00012415,2]
[323624536,1714143064074,-1047.45,0.00012415,2]
[323624537,1714143064083,-502.73215772,0.00012415,2]
[323624538,1714143064094,-794.44,0.00012415,2]
[323624539,1714143064103,-627.1,0.00012415,2]
[323624540,1714143064113,-500.0,0.00012415,2]
[323624541,1714143064125,-919.78,0.00012415,2]
[323624542,1714143064135,-806.04,0.00012415,2]
[323624543,1714143064145,-500.0,0.00012415,2]
[323624544,1714143064157,-308.71561426,0.00012415,2]
[323624545,1714143064167,-500.0,0.00012415,2]
[323624546,1714143064178,-500.0,0.00012415,2]
[323624547,1714143064188,-500.0,0.00012415,2]
[323624548,1714143064198,-500.0,0.00012415,2]
[323624549,1714143064212,-500.0,0.00012415,2]
[323624550,1714143064221,-694.55,0.00012415,2]
[323624551,1714143064232,-732.31,0.00012415,2]
[323624552,1714143064245,-500.0,0.00012415,2]
[323624553,1714143064255,-500.0,0.00012415,2]
[323624554,1714143064266,-500.0,0.00012415,2]
[323624555,1714143064277,-684.0,0.00012415,2]
[323624556,1714143064288,-500.0,0.00012415,2]
[323624557,1714143064299,-583.92,0.00012415,2]
[323624558,1714143064310,-500.0,0.00012415,2]
[323624559,1714143064321,-984.02,0.00012415,2]
[323624560,1714143064332,-1020.45,0.00012415,2]
[323624561,1714143064343,-500.0,0.00012415,2]
[323624562,1714143064354,-500.0,0.00012415,2]
[323624563,1714143064365,-716.55,0.00012415,2]
[323624564,1714143064375,-500.0,0.00012415,2]
[323624565,1714143064386,-696.67,0.00012415,2]
[323624566,1714143064396,-500.0,0.00012415,2]
[323624567,1714143064406,-500.0,0.00012415,2]
[323624568,1714143064416,-500.0,0.00012415,2]
[323624569,1714143064425,-525.86,0.00012415,2]
[323624570,1714143064435,-500.0,0.00012415,2]
[323624571,1714143064445,-500.0,0.00012415,2]
[323624572,1714143064455,-162.74557193,0.00012415,2]
[323624573,1714143064465,-500.0,0.00012415,2]
[323624574,1714143064475,-500.0,0.00012415,2]
[323624575,1714143064484,-500.0,0.00012415,2]
[323624576,1714143064495,-768.71,0.00012415,2]
[323624577,1714143064505,-307.039782,0.00012415,2]
[323624578,1714143064514,-307.039782,0.00012415,2]
[323624579,1714143064525,-1500.0,0.0001244,2]
[323624580,1714143064536,-210.0,0.0001246,2]
[323624581,1714143064546,-215.0,0.0001246,2]
[323624582,1714143064557,-412.7017086,0.00012471,2]
[323624583,1714143064567,-308.2584073,0.00012471,2]
[323624584,1714143064578,-14971.0816869,0.00012471,2]
[323624585,1714143064588,-500.0,0.00012473,2]
[323624586,1714143064598,-500.0,0.00012473,2]
[323624587,1714143064608,-500.0,0.00012473,2]
[323624588,1714143064618,-571.26,0.00012473,2]
[323624589,1714143064628,-503.32668939,0.00012473,2]
[323624590,1714143064637,-504.78913653,0.00012473,2]
[323624591,1714143064648,-500.0,0.00012473,2]
[323624592,1714143064657,-500.0,0.00012473,2]
[323624593,1714143064667,-500.0,0.00012473,2]
[323624594,1714143064676,-631.74,0.00012473,2]
[323624595,1714143064687,-500.0,0.00012473,2]
[323624596,1714143064696,-513.81,0.00012473,2]
[323624597,1714143064707,-500.0,0.00012473,2]
[323624598,1714143064716,-500.0,0.00012473,2]
[323624599,1714143064726,-500.0,0.00012473,2]
[323624600,1714143064737,-500.0,0.00012473,2]
[323624601,1714143064748,-870.0,0.00012473,2]
[323624602,1714143064759,-500.0,0.00012473,2]
[323624603,1714143064770,-500.0,0.00012473,2]
[323624604,1714143064780,-500.0,0.00012473,2]
[323624605,1714143064790,-500.0,0.00012473,2]
[323624606,1714143064800,-500.0,0.00012473,2]
[323624607,1714143064810,-500.0,0.00012473,2]
[323624608,1714143064821,-500.0,0.00012473,2]
[323624609,1714143064831,-579.26,0.00012473,2]
[323624610,1714143064841,-500.12,0.00012473,2]
[323624611,1714143064851,-500.0,0.00012473,2]
[323624612,1714143064862,-641.46,0.00012473,2]
[323624613,1714143064872,-874.42,0.00012473,2]
[323624614,1714143064882,-500.0,0.00012473,2]
[323624615,1714143064893,-500.0,0.00012473,2]
[323624616,1714143064904,-500.0,0.00012473,2]
[323624617,1714143064916,-500.0,0.00012473,2]
[323624618,1714143064926,-500.0,0.00012473,2]
[323624619,1714143064937,-500.0,0.00012473,2]
[323624620,1714143064947,-500.0,0.00012473,2]
[323624621,1714143064959,-500.0,0.00012473,2]
[323624622,1714143064970,-500.0,0.00012473,2]
[323624623,1714143064981,-500.0,0.00012473,2]
[323624624,1714143064994,-500.0,0.00012473,2]
[323624625,1714143065005,-500.0,0.00012473,2]
[323624626,1714143065015,-500.0,0.00012473,2]
[323624627,1714143065025,-500.0,0.00012473,2]
[323624628,1714143065036,-890.6,0.00012473,2]
[323624629,1714143065046,-500.0,0.00012473,2]
[323624630,1714143065056,-513.58,0.00012473,2]
[323624631,1714143065069,-500.0,0.00012473,2]
[323624632,1714143065079,-500.0,0.00012473,2]
[323624633,1714143065090,-500.0,0.00012473,2]
[323624634,1714143065100,-500.0,0.00012473,2]
[323624635,1714143065110,-500.0,0.00012473,2]
[323624636,1714143065120,-676.38,0.00012473,2]
[323624637,1714143065130,-257.7357338,0.00012473,2]
[323624638,1714143065140,-626.11,0.00012473,2]
[323624639,1714143065150,-500.0,0.00012473,2]
[323624640,1714143065160,-991.74,0.00012473,2]
[323624642,1714143065174,-500.0,0.00012473,2]
[323624643,1714143065185,-500.0,0.00012473,2]
[323624644,1714143065195,-500.0,0.00012473,2]
[323624646,1714143065205,-500.0,0.00012473,2]
[323624647,1714143065218,-500.0,0.00012473,2]
[323624648,1714143065228,-510.79101425,0.00012473,2]
[323624649,1714143065239,-500.0,0.00012473,2]
[323624650,1714143065254,-500.0,0.00012473,2]
[323624651,1714143065264,-500.0,0.00012473,2]
[323624652,1714143065274,-500.0,0.00012473,2]
[323624653,1714143065285,-500.0,0.00012473,2]
[323624654,1714143065295,-500.0,0.00012473,2]
[323624655,1714143065306,-500.0,0.00012473,2]
[323624656,1714143065316,-500.0,0.00012473,2]
[323624657,1714143065326,-1027.98,0.00012473,2]
[323624658,1714143065336,-500.0,0.00012473,2]
[323624659,1714143065346,-500.0,0.00012473,2]
[323624660,1714143065356,-500.0,0.00012473,2]
[323624661,1714143065367,-500.0,0.00012473,2]
[323624662,1714143065377,-500.0,0.00012473,2]
[323624663,1714143065387,-500.0,0.00012473,2]
[323624664,1714143065397,-748.11,0.00012473,2]
[323624665,1714143065408,-806.19,0.00012473,2]
[323624666,1714143065418,-500.0,0.00012473,2]
[323624667,1714143065429,-500.0,0.00012473,2]
[323624668,1714143065438,-504.50069793,0.00012473,2]
[323624669,1714143065449,-500.0,0.00012473,2]
[323624670,1714143065459,-632.58,0.00012473,2]
[323624671,1714143065469,-500.0,0.00012473,2]
[323624672,1714143065479,-500.0,0.00012473,2]
[323624673,1714143065490,-500.0,0.00012473,2]
[323624674,1714143065505,-500.0,0.00012473,2]
[323624675,1714143065517,-500.0,0.00012473,2]
[323624676,1714143065527,-500.0,0.00012473,2]
[323624677,1714143065538,-500.0,0.00012473,2]
[323624678,1714143065548,-579.33332157,0.00012473,2]
[323624679,1714143065558,-500.0,0.00012473,2]
[323624680,1714143065567,-500.0,0.00012473,2]
[323624681,1714143065577,-500.0,0.00012473,2]
[323624682,1714143065587,-500.0,0.00012473,2]
[323624683,1714143065597,-500.0,0.00012473,2]
[323624684,1714143065607,-500.0,0.00012473,2]
[323624685,1714143065617,-500.0,0.00012473,2]
[323624686,1714143065628,-500.0,0.00012473,2]
[323624687,1714143065638,-500.0,0.00012473,2]
[323624688,1714143065648,-500.0,0.00012473,2]
[323624689,1714143065657,-500.0,0.00012473,2]
[323624690,1714143065667,-500.0,0.00012473,2]
[323624691,1714143065677,-898.25,0.00012473,2]
[323624692,1714143065688,-470.14,0.00012473,2]
[323624693,1714143065698,-500.0,0.00012473,2]
[323624694,1714143065708,-500.0,0.00012473,2]
[323624695,1714143065718,-685.72,0.00012473,2]
[323624696,1714143065729,-500.0,0.00012473,2]
[323624697,1714143065739,-500.0,0.00012473,2]
[323624698,1714143065750,-500.0,0.00012473,2]
[323624699,1714143065760,-500.0,0.00012473,2]
[323624700,1714143065770,-150.0,0.00012473,2]
[323624701,1714143065780,-898.08,0.00012473,2]
[323624702,1714143065790,-500.0,0.00012473,2]
[323624703,1714143065800,-858.07,0.00012473,2]
[323624704,1714143065810,-500.0,0.00012473,2]
[323624705,1714143065820,-500.0,0.00012473,2]
[323624706,1714143065830,-1858.71,0.00012473,2]
[323624707,1714143065841,-500.0,0.00012473,2]
[323624708,1714143065851,-500.0,0.00012473,2]
[323624709,1714143065860,-500.0,0.00012473,2]
[323624710,1714143065871,-500.0,0.00012473,2]
[323624711,1714143065880,-500.0,0.00012473,2]
[323624712,1714143065891,-471.54,0.00012473,2]
[323624713,1714143065901,-500.0,0.00012473,2]
[323624714,1714143065911,-500.0,0.00012473,2]
[323624715,1714143065921,-500.0,0.00012473,2]
[323624716,1714143065932,-500.0,0.00012473,2]
[323624717,1714143065942,-500.0,0.00012473,2]
[323624718,1714143065951,-500.0,0.00012473,2]
[323624719,1714143065961,-871.08,0.00012473,2]
[323624720,1714143065972,-500.0,0.00012473,2]
[323624721,1714143065982,-1121.0,0.00012473,2]
[323624722,1714143065993,-500.0,0.00012473,2]
[323624723,1714143066005,-500.0,0.00012473,2]
[323624724,1714143066016,-500.0,0.00012473,2]
[323624725,1714143066026,-500.0,0.00012473,2]
[323624726,1714143066036,-1137.66,0.00012473,2]
[323624727,1714143066047,-538.17,0.00012473,2]
[323624728,1714143066058,-500.0,0.00012473,2]
[323624729,1714143066069,-500.0,0.00012473,2]
[323624730,1714143066081,-500.0,0.00012473,2]
[323624731,1714143066092,-1336.77,0.00012474,2]
[323624732,1714143066103,-500.0,0.00012474,2]
[323624733,1714143066113,-693.45,0.00012474,2]
[323624734,1714143066123,-500.0,0.00012474,2]
[323624735,1714143066134,-500.0,0.00012474,2]
[323624736,1714143066144,-296.97750206,0.00012474,2]
[323624737,1714143066154,-500.0,0.00012474,2]
[323624738,1714143066165,-500.0,0.00012474,2]
[323624739,1714143066180,-500.0,0.00012474,2]
[323624740,1714143066190,-886.32,0.00012474,2]
[323624741,1714143066200,-500.0,0.00012474,2]
[323624742,1714143066210,-1136.62,0.00012474,2]
[323624743,1714143066220,-500.0,0.00012474,2]
[323624744,1714143066230,-500.0,0.00012475,2]
[323624745,1714143066240,-500.0,0.00012475,2]
[323624746,1714143066255,-500.0,0.00012475,2]
[323624747,1714143066431,-954.12,0.00012475,2]
[323624748,1714143066465,-2603.46,0.00012475,2]
[323624749,1714143066476,-7779.03,0.00012475,2]
[323624750,1714143066485,-500.0,0.00012475,2]
[323624751,1714143066497,-683.84,0.00012475,2]
[323624752,1714143066507,-515.37,0.00012475,2]
[323624753,1714143066517,-551.0,0.00012475,2]
[323624754,1714143066526,-551.18,0.00012475,2]
[323624755,1714143066536,-1066.65,0.00012475,2]
[323624756,1714143066546,-500.0,0.00012475,2]
[323624757,1714143066556,-613.38636474,0.00012475,2]
[323624758,1714143066565,-500.0,0.00012475,2]
[323624759,1714143066575,-500.0,0.00012475,2]
[323624760,1714143066584,-500.0,0.00012475,2]
[323624761,1714143066593,-1494.2,0.00012475,2]
[323624762,1714143066602,-588.63,0.00012475,2]
[323624763,1714143066612,-566.51,0.00012475,2]
[323624764,1714143066622,-1046.03,0.00012475,2]
[323624765,1714143066631,-523.29,0.00012475,2]
[323624766,1714143066641,-500.0,0.00012475,2]
[323624767,1714143066650,-500.0,0.00012475,2]
[323624768,1714143066661,-500.0,0.00012475,2]
[323624769,1714143066670,-500.0,0.00012475,2]
[323624770,1714143066680,-631.06,0.00012475,2]
[323624771,1714143066689,-500.0,0.00012475,2]
[323624772,1714143066699,-500.0,0.00012475,2]
[323624773,1714143066709,-500.0,0.00012475,2]
[323624774,1714143066719,-503.45607492,0.00012475,2]
[323624775,1714143066728,-500.0,0.00012475,2]
[323624776,1714143066737,-1237.16,0.00012475,2]
[323624777,1714143066750,-600.53,0.00012475,2]
[323624778,1714143066759,-500.0,0.00012475,2]
[323624779,1714143066769,-2519.53,0.00012475,2]
[323624780,1714143066778,-608.0,0.00012475,2]
[323624781,1714143066787,-500.0,0.00012475,2]
[323624782,1714143066797,-500.0,0.00012475,2]
[323624783,1714143066806,-12753.53,0.00012475,2]
[323624784,1714143066815,-500.0,0.00012475,2]
[323624785,1714143066825,-1505492.79001975,0.0001248,2]
[323624786,1714143066834,-307.039782,0.0001248,2]
[323624787,1714143066844,-307.039782,0.0001248,2]
[323624788,1714143066854,-1404.314102,0.0001248,2]
[323624789,1714143066863,-1404.314102,0.0001248,2]
[323624790,1714143066872,-654.88,0.00012487,2]
[323624791,1714143066882,-500.0,0.00012487,2]
[323624792,1714143066891,-500.0,0.00012487,2]
[323624793,1714143066901,-500.0,0.00012487,2]
[323624794,1714143066912,-500.0,0.00012487,2]
[323624795,1714143066921,-500.0,0.00012487,2]
[323624796,1714143066931,-965.57,0.00012487,2]
[323624797,1714143066945,-503.0899805,0.00012487,2]
[323624798,1714143066956,-500.0,0.00012487,2]
[323624799,1714143066984,-500.0,0.00012487,2]
[323624800,1714143067001,-500.0,0.00012487,2]
[323624801,1714143067012,-778.2,0.00012487,2]
[323624802,1714143067041,-500.0,0.00012487,2]
[323624803,1714143067062,-509.43,0.00012487,2]
[323624804,1714143067078,-500.0,0.00012487,2]
[323624805,1714143067098,-500.0,0.00012487,2]
[323624806,1714143067114,-500.0,0.00012487,2]
[323624807,1714143067124,-629.30586059,0.00012487,2]
[323624808,1714143067133,-500.0,0.00012487,2]
[323624809,1714143067143,-621.04,0.00012487,2]
[323624810,1714143067162,-783.5,0.00012487,2]
[323624811,1714143067192,-500.0,0.00012487,2]
[323624812,1714143067207,-555.81737892,0.00012487,2]
[323624813,1714143067221,-500.0,0.00012487,2]
[323624814,1714143067236,-220.64830015,0.00012487,2]
[323624815,1714143067260,-500.0,0.00012487,2]
[323624816,1714143067278,-500.0,0.00012487,2]
[323624817,1714143067288,-371.6574249,0.00012487,2]
[323624818,1714143067298,-827.15,0.00012487,2]
[323624819,1714143067317,-500.0,0.00012487,2]
[323624820,1714143067358,-503.67125184,0.00012487,2]
[323624821,1714143067380,-504.34640869,0.00012487,2]
[323624822,1714143067391,-505.19383151,0.00012487,2]
[323624823,1714143067400,-500.0,0.00012487,2]
[323624824,1714143067412,-530.57456621,0.00012487,2]
[323624825,1714143067423,-725.47,0.00012487,2]
[323624826,1714143067434,-500.0,0.00012487,2]
[323624827,1714143067445,-559.81,0.00012487,2]
[323624828,1714143067455,-500.0,0.00012487,2]
[323624829,1714143067466,-538.66,0.00012487,2]
[323624830,1714143067476,-505.1408097,0.00012487,2]
[323624831,1714143067487,-545.33637363,0.00012487,2]
[323624832,1714143067502,-500.0,0.00012487,2]
[323624833,1714143067513,-500.0,0.00012487,2]
[323624834,1714143067523,-627.51423455,0.00012487,2]
[323624835,1714143067534,-593.58,0.00012487,2]
[323624836,1714143067544,-864.4,0.00012487,2]
[323624837,1714143067555,-724.77,0.00012487,2]
[323624838,1714143067565,-500.0,0.00012487,2]
[323624839,1714143067577,-506.14532696,0.00012487,2]
[323624840,1714143067588,-794.48,0.00012487,2]
[323624841,1714143067599,-500.0,0.00012487,2]
[323624842,1714143067610,-500.0,0.00012487,2]
[323624843,1714143067622,-501.73937206,0.00012487,2]
[323624844,1714143067632,-410.71410414,0.00012487,2]
[323624845,1714143067643,-1121.19,0.00012487,2]
[323624846,1714143067654,-503.95911396,0.00012487,2]
[323624847,1714143067665,-750.25,0.00012487,2]
[323624848,1714143067675,-500.0,0.00012487,2]
[323624849,1714143067686,-500.0,0.00012487,2]
[323624850,1714143067696,-500.0,0.00012487,2]
[323624851,1714143067706,-500.0,0.00012487,2]
[323624852,1714143067717,-873.25,0.00012487,2]
[323624853,1714143067727,-500.0,0.00012487,2]
[323624854,1714143067737,-500.0,0.00012487,2]
[323624855,1714143067752,-500.0,0.00012487,2]
[323624856,1714143067762,-500.0,0.00012487,2]
[323624857,1714143067773,-2213.64,0.00012487,2]
[323624858,1714143067784,-921.5,0.00012487,2]
[323624859,1714143067794,-500.0,0.00012487,2]
[323624860,1714143067805,-500.0,0.00012487,2]
[323624861,1714143067816,-500.0,0.00012487,2]
[323624862,1714143067826,-500.0,0.00012487,2]
[323624863,1714143067836,-500.0,0.00012487,2]
[323624864,1714143067847,-500.0,0.00012487,2]
[323624865,1714143067858,-500.0,0.00012487,2]
[323624866,1714143067868,-504.0187101,0.00012487,2]
[323624867,1714143067878,-500.0,0.00012487,2]
[323624868,1714143067889,-500.0,0.00012487,2]
[323624869,1714143067899,-500.0,0.00012487,2]
[323624870,1714143067909,-500.0,0.00012487,2]
[323624871,1714143067919,-657.72,0.00012487,2]
[323624872,1714143067929,-500.0,0.00012487,2]
[323624873,1714143067940,-500.0,0.00012487,2]
[323624874,1714143067950,-618.22,0.00012487,2]
[323624875,1714143067962,-500.0,0.00012487,2]
[323624876,1714143067973,-500.0,0.00012487,2]
[323624877,1714143067984,-501.48941201,0.00012487,2]
[323624878,1714143067995,-500.0,0.00012487,2]
[323624879,1714143068008,-500.0,0.00012487,2]
[323624880,1714143068019,-959.65,0.00012487,2]
[323624881,1714143068030,-500.0,0.00012487,2]
[323624882,1714143068040,-500.0,0.00012487,2]
[323624883,1714143068050,-500.0,0.00012487,2]
[323624884,1714143068060,-500.0,0.00012487,2]
[323624885,1714143068070,-589.32,0.00012487,2]
[323624886,1714143068079,-500.0,0.00012487,2]
[323624887,1714143068089,-500.0,0.00012487,2]
[323624888,1714143068099,-685.52,0.00012487,2]
[323624889,1714143068108,-500.0,0.00012487,2]
[323624890,1714143068118,-500.0,0.00012487,2]
[323624891,1714143068127,-1260.5,0.00012487,2]
[323624892,1714143068137,-500.0,0.00012487,2]
[323624893,1714143068147,-500.0,0.00012487,2]
[323624894,1714143068156,-500.0,0.00012487,2]
[323624895,1714143068167,-500.0,0.00012487,2]
[323624896,1714143068177,-251.69476738,0.000125,2]
[323624897,1714143068187,-468955.71543238,0.000125,2]
[323624898,1714143068197,-3000.0,0.000125,2]
[323624899,1714143068209,-14799.42193898,0.000125,2]
[323624900,1714143068218,-307.039782,0.000125,2]
[323624901,1714143068228,-307.039782,0.000125,2]
[323624902,1714143068238,-1404.314102,0.000125,2]
[323624903,1714143068251,-1404.314102,0.000125,2]
[323624904,1714143068260,-150.0,0.00012558,2]
[323624905,1714143068270,-347.0078606,0.00012578,2]
[323624906,1714143068281,-500.0,0.00012578,2]
[323624907,1714143068291,-500.0,0.00012578,2]
[323624908,1714143068301,-500.0,0.00012578,2]
[323624909,1714143068311,-1049.36,0.00012578,2]
[323624910,1714143068321,-500.0,0.00012578,2]
[323624911,1714143068330,-500.0,0.00012578,2]
[323624912,1714143068340,-500.0,0.00012578,2]
[323624913,1714143068350,-656.65,0.00012578,2]
[323624914,1714143068360,-214.0,0.00012578,2]
[323624915,1714143068370,-528.86380454,0.00012578,2]
[323624916,1714143068379,-500.0,0.00012578,2]
[323624917,1714143068389,-1033.93,0.00012578,2]
[323624918,1714143068399,-500.0,0.00012578,2]
[323624919,1714143068409,-500.0,0.00012578,2]
[323624920,1714143068419,-457.29121417,0.00012578,2]
[323624921,1714143068428,-500.0,0.00012578,2]
[323624922,1714143068439,-500.0,0.00012578,2]
[323624923,1714143068448,-999.61,0.00012578,2]
[323624924,1714143068457,-819.22,0.00012578,2]
[323624925,1714143068467,-686.21,0.00012578,2]
[323624926,1714143068476,-500.0,0.00012578,2]
[323624927,1714143068486,-503.8590866,0.00012578,2]
[323624928,1714143068498,-500.0,0.00012578,2]
[323624929,1714143068508,-539.94502846,0.00012578,2]
[323624930,1714143068518,-500.0,0.00012578,2]
[323624931,1714143068528,-500.0,0.00012578,2]
[323624932,1714143068539,-586.31,0.00012578,2]
[323624933,1714143068550,-500.0,0.00012578,2]
[323624934,1714143068559,-500.0,0.00012578,2]
[323624935,1714143068572,-799.74,0.00012578,2]
[323624936,1714143068582,-505.18829373,0.00012578,2]
[323624937,1714143068592,-500.0,0.00012578,2]
[323624938,1714143068602,-942.96,0.00012578,2]
[323624939,1714143068612,-504.61017171,0.00012578,2]
[323624940,1714143068622,-1063.5,0.00012578,2]
[323624941,1714143068631,-500.0,0.00012578,2]
[323624942,1714143068641,-500.0,0.00012578,2]
[323624943,1714143068651,-599.12,0.00012578,2]
[323624944,1714143068660,-500.0,0.00012578,2]
[323624945,1714143068670,-630.17,0.00012578,2]
[323624946,1714143068679,-500.0,0.00012578,2]
[323624947,1714143068689,-500.0,0.00012578,2]
[323624948,1714143068699,-782.17,0.00012578,2]
[323624949,1714143068709,-723.08,0.00012578,2]
[323624950,1714143068718,-500.0,0.00012578,2]
[323624951,1714143068728,-500.0,0.00012578,2]
[323624952,1714143068738,-948.16,0.00012578,2]
[323624953,1714143068751,-916.54,0.00012578,2]
[323624954,1714143068761,-500.0,0.00012578,2]
[323624955,1714143068770,-500.0,0.00012578,2]
[323624956,1714143068779,-500.0,0.00012578,2]
[323624957,1714143068789,-500.0,0.00012578,2]
[323624958,1714143068799,-500.0,0.00012578,2]
[323624959,1714143068809,-500.0,0.00012578,2]
[323624960,1714143068818,-500.0,0.00012578,2]
[323624961,1714143068828,-965.48,0.00012578,2]
[323624962,1714143068837,-500.0,0.00012578,2]
[323624963,1714143068847,-504.94170499,0.00012578,2]
[323624964,1714143068856,-500.0,0.00012578,2]
[323624965,1714143068865,-787.28,0.00012578,2]
[323624966,1714143068875,-500.0,0.00012578,2]
[323624967,1714143068885,-500.0,0.00012578,2]
[323624968,1714143068894,-500.0,0.00012578,2]
[323624969,1714143068903,-500.0,0.00012578,2]
[323624970,1714143068913,-500.0,0.00012578,2]
[323624971,1714143068922,-781.02,0.00012578,2]
[323624972,1714143068932,-500.0,0.00012578,2]
[323624973,1714143068942,-500.0,0.00012578,2]
[323624974,1714143068951,-500.0,0.00012578,2]
[323624975,1714143068960,-500.0,0.00012578,2]
[323624976,1714143068970,-500.0,0.00012578,2]
[323624977,1714143068979,-500.0,0.00012578,2]
[323624978,1714143068988,-616.93,0.00012578,2]
[323624979,1714143069000,-503.67304801,0.00012578,2]
[323624980,1714143069009,-500.0,0.00012578,2]
[323624981,1714143069019,-500.0,0.00012578,2]
[323624982,1714143069028,-500.0,0.00012578,2]
[323624983,1714143069037,-682.48,0.00012578,2]
[323624984,1714143069047,-954.82,0.00012578,2]
[323624985,1714143069056,-500.0,0.00012578,2]
[323624986,1714143069065,-500.0,0.00012578,2]
[323624987,1714143069075,-500.0,0.00012578,2]
[323624988,1714143069084,-500.0,0.00012578,2]
[323624989,1714143069094,-500.0,0.00012578,2]
[323624990,1714143069102,-500.0,0.00012578,2]
[323624991,1714143069112,-808.28,0.00012578,2]
[323624992,1714143069121,-500.0,0.00012578,2]
[323624993,1714143069131,-500.0,0.00012578,2]
[323624994,1714143069141,-500.0,0.00012578,2]
[323624995,1714143069150,-500.0,0.00012578,2]
[323624996,1714143069159,-1168.43,0.00012578,2]
[323624997,1714143069169,-787.7,0.00012578,2]
[323624998,1714143069179,-220.0,0.0001259,2]
[323624999,1714143069188,-210.0,0.0001259,2]
[323625000,1714143069198,-215.0,0.0001259,2]
[323625001,1714143069210,-2150.52,0.00012598,2]
[323625002,1714143069220,-14799.42193898,0.000126,2]
[323625003,1714143069229,-300.0,0.000126,4]
[323625004,1714143069238,-2100.0,0.00012611,2]
[323625005,1714143069248,-300.332,0.00012611,2]
[323625006,1714143069258,-160.0,0.00012613,2]
[323625007,1714143069268,-600.0,0.00012632,2]
[323625008,1714143069277,-150.0,0.00012633,2]
[323625009,1714143069287,-150.0,0.00012643,2]
[323625010,1714143069297,-150.0,0.00012666,2]
[323625011,1714143069307,-150.0,0.0001267,2]
[323625012,1714143069316,-150.0,0.00012672,2]
[323625013,1714143069325,-500.0,0.00012679,2]
[323625014,1714143069334,-468.07017232,0.00012679,2]
[323625015,1714143069343,-504.31311715,0.00012679,2]
[323625016,1714143069354,-499.02181998,0.00012679,2]
[323625017,1714143069363,-500.0,0.00012679,2]
[323625018,1714143069372,-482.9679294,0.00012679,2]